bitfinex/quotes_ETHUSD_20240614
["timestamp","ask_amount","ask_price","bid_price","bid_amount"]
[1718355252411,2.3019,3524.6,3523.7,1.43344514]
[1718355252611,0.696,3524.2,3523.7,1.43344514]
[1718355253274,0.696,3524.4,3523.8,0.05675008]
[1718355254604,0.696,3524.4,3523.7,3.13744514]
[1718355256520,0.696,3524.2,3523.7,3.13744514]
[1718355259502,1.78458468,3524.7,3523.7,3.13744514]
[1718355260020,0.696,3524.4,3523.7,3.13744514]
[1718355260521,1.78458468,3524.7,3523.7,3.13744514]
[1718355260683,2.2885,3524.8,3523.7,3.13744514]
[1718355260684,0.696,3524.4,3523.7,3.13744514]
[1718355261589,0.696,3524.4,3523.7,3.12844514]
[1718355263626,0.696,3524.2,3523.4,11.4468]
[1718355263828,0.696,3524.2,3523.5,1.43344514]
[1718355264330,2.4903,3524.4,3523.5,1.43344514]
[1718355264505,0.696,3524.0,3523.5,1.43344514]
[1718355265211,0.696,3524.2,3523.5,1.43344514]
[1718355266798,0.696,3524.2,3523.6,0.0567535]
[1718355267231,0.696,3524.2,3523.5,1.43344514]
[1718355268544,0.696,3524.2,3523.6,0.05675355]
[1718355269433,0.696,3524.2,3523.5,1.43344514]
[1718355271713,0.696,3524.2,3523.6,0.0567536]
[1718355274522,1.78580013,3524.5,3523.7,3.13744514]
[1718355274725,1.78607621,3524.6,3523.8,0.05674963]
[1718355274923,0.696,3524.3,3523.7,3.13744514]
[1718355276540,0.696,3524.3,3523.8,2.46714967]
[1718355277564,2.48207621,3524.5,3523.8,2.46714967]
[1718355279471,2.48207621,3524.5,3523.8,2.4104]
[1718355280459,0.696,3524.3,3523.8,2.4104]
[1718355288693,0.696,3524.3,3523.8,2.3104]
[1718355295488,2.48376598,3524.4,3523.8,2.3104]
[1718355296199,0.696,3524.4,3523.8,2.3104]
[1718355296759,2.48420805,3524.4,3523.8,2.3104]
[1718355297196,0.696,3524.4,3523.8,2.3104]
[1718355298582,2.48420805,3524.4,3523.8,2.3104]
[1718355299796,0.696,3524.4,3523.8,2.3104]
[1718355302363,2.48420805,3524.4,3523.8,2.3104]
[1718355302587,0.696,3524.4,3523.8,2.3104]
[1718355302789,1.78820805,3524.5,3523.8,2.3104]
[1718355303068,0.696,3524.4,3523.8,2.3104]
[1718355304696,1.78803205,3524.6,3523.9,0.05674869]
[1718355305003,2.369,3524.8,3523.9,0.05674869]
[1718355305004,2.48403205,3524.5,3523.9,0.05674869]
[1718355305176,0.696,3524.5,3523.9,0.05674869]
[1718355305368,1.78803205,3524.6,3524.0,2.3749]
[1718355305563,2.48403205,3524.6,3524.0,2.3749]
[1718355307419,1.78803205,3524.6,3524.1,0.05674872]
[1718355307601,1.78803205,3524.9,3524.2,2.4]
[1718355307817,2.08603739,3525.1,3524.5,2.406]
[1718355307818,1.78803205,3525.1,3524.5,2.406]
[1718355308100,1.78803205,3525.2,3524.6,0.05673824]
[1718355308300,0.696,3525.3,3524.6,0.05673824]
[1718355309407,1.1893432,3525.3,3524.6,1.49018338]
[1718355309593,1.1893432,3525.3,3524.7,1.43344514]
[1718355309594,0.68236097,3525.3,3524.7,1.43344514]
[1718355312131,0.68236097,3525.3,3524.6,1.704]
[1718355312430,0.696,3524.9,3524.6,1.43344514]
[1718355316633,4.23338041,3525.5,3524.6,1.43344514]
[1718355316821,0.696,3525.1,3524.6,1.43344514]
[1718355322714,2.4494,3525.5,3524.6,1.43344514]
[1718355322919,0.696,3525.3,3524.7,2.41]
[1718355325246,4.23586478,3525.8,3524.7,2.41]
[1718355325406,0.696,3525.4,3524.7,2.41]
[1718355325611,0.696,3525.2,3524.4,4.2038]
[1718355325837,0.696,3525.2,3524.4,5.63724514]
[1718355326532,0.696,3525.2,3524.4,3.93324514]
[1718355326711,1.01471,3525.2,3524.4,2.4998]
[1718355327713,0.696,3524.5,3524.0,2.2547]
[1718355327950,0.696,3524.5,3524.0,3.68814514]
[1718355328431,0.696,3524.5,3524.0,2.2547]
[1718355330850,0.696,3524.5,3523.6,1.704]
[1718355331043,0.696,3524.5,3523.6,3.13744514]
[1718355331656,0.696,3524.3,3523.6,3.13744514]
[1718355333715,0.696,3524.3,3523.5,2.4394]
[1718355333923,0.696,3524.1,3523.5,2.4394]
[1718355334117,0.696,3523.9,3523.4,7.44]
[1718355335558,0.31801,3523.9,3523.4,7.44]
[1718355335758,0.696,3523.7,3523.4,7.44]
[1718355335958,0.696,3523.7,3523.0,2.3166]
[1718355336167,0.696,3523.7,3522.9,21.574]
[1718355336366,0.696,3523.5,3522.9,23.00744514]
[1718355337061,2.4841,3524.2,3522.9,23.00744514]
[1718355337264,0.696,3523.7,3522.9,23.00744514]
[1718355338968,0.696,3523.7,3522.9,10.57744514]
[1718355347380,3.0825,3523.7,3522.9,10.57744514]
[1718355349089,0.696,3523.5,3522.9,7.44]
[1718355350648,0.696,3523.5,3522.7,4.0206]
[1718355350951,0.696,3523.5,3522.8,1.43344514]
[1718355357770,2.3865,3523.7,3522.8,1.43344514]
[1718355357969,0.696,3523.5,3522.8,1.43344514]
[1718355363681,0.696,3523.6,3522.8,1.43344514]
[1718355367507,0.696,3523.5,3522.8,1.43344514]
[1718355367712,2.3865,3523.7,3522.8,1.43344514]
[1718355367868,0.696,3523.5,3522.8,1.43344514]
[1718355368695,2.3865,3523.7,3522.8,1.43344514]
[1718355368896,3.0825,3523.7,3522.8,1.43344514]
[1718355369380,0.696,3523.5,3522.8,1.40544514]
[1718355373470,0.696,3523.5,3522.8,1.26344514]
[1718355375987,2.3865,3523.7,3522.8,1.26344514]
[1718355375988,0.696,3523.6,3522.8,1.26344514]
[1718355376310,1.18231373,3523.6,3522.8,1.26344514]
[1718355377468,0.696,3523.4,3522.7,1.704]
[1718355377912,0.696,3523.2,3522.7,1.704]
[1718355378590,0.696,3523.4,3522.7,1.704]
[1718355379788,2.26695105,3523.6,3522.7,1.704]
[1718355379983,0.696,3523.3,3522.7,1.704]
[1718355382173,0.4653451,3523.5,3522.7,1.704]
[1718355382373,0.696,3523.4,3522.7,1.704]
[1718355387059,0.4653451,3523.5,3522.7,1.704]
[1718355387237,0.696,3523.4,3522.7,1.704]
[1718355388137,1.22884824,3523.4,3522.7,1.704]
[1718355388733,0.696,3523.2,3522.7,1.704]
[1718355397306,0.696,3523.2,3522.6,2.4715]
[1718355397724,0.696,3523.2,3522.4,2.4638]
[1718355399432,0.696,3523.0,3522.4,2.4638]
[1718355400106,0.24766373,3522.9,3522.4,2.4638]
[1718355400307,0.24766373,3522.9,3522.2,9.7278]
[1718355400531,0.696,3523.0,3522.1,0.44409649]
[1718355400532,0.696,3522.8,3522.1,0.44409649]
[1718355400732,0.696,3522.8,3522.0,2.33713959]
[1718355401448,0.696,3522.9,3522.0,2.33713959]
[1718355404747,2.3617,3523.1,3522.0,2.33713959]
[1718355404909,0.696,3522.9,3522.0,2.33713959]
[1718355406449,1.17983373,3522.9,3522.0,2.33713959]
[1718355412954,0.48383373,3522.9,3522.0,2.33713959]
[1718355413257,0.696,3522.8,3522.0,2.33713959]
[1718355414585,2.3617,3523.1,3522.1,2.3727]
[1718355414586,0.696,3522.6,3522.1,2.3727]
[1718355417034,0.696,3522.4,3521.8,2.2624]
[1718355417267,0.99426,3522.4,3521.8,2.2624]
[1718355417468,0.696,3522.2,3521.8,2.2624]
[1718355420093,0.696,3522.2,3521.6,2.3178]
[1718355421174,0.696,3522.3,3521.6,2.3178]
[1718355421476,0.29826,3522.4,3521.6,2.3178]
[1718355421678,0.954486,3522.3,3521.6,2.3178]
[1718355423421,0.696,3522.3,3521.6,2.3178]
[1718355425115,0.696,3522.5,3521.6,2.3178]
[1718355427541,2.2866,3522.6,3521.6,2.3178]
[1718355427542,0.696,3522.3,3521.6,2.3178]
[1718355427701,0.696,3522.1,3521.4,2.4751]
[1718355427903,2.3723,3522.5,3521.4,2.4751]
[1718355428104,0.23723,3522.4,3521.4,3.1711]
[1718355428417,2.3723,3522.5,3521.5,2.4936]
[1718355428619,3.0683,3522.5,3521.5,2.4936]
[1718355428815,0.696,3522.4,3521.5,2.4936]
[1718355430212,2.3723,3522.5,3521.5,2.4936]
[1718355430537,0.696,3522.4,3521.5,2.4936]
[1718355431398,2.3723,3522.5,3521.5,2.4936]
[1718355431597,0.53723,3522.5,3521.5,2.4936]
[1718355431802,0.696,3522.5,3521.6,2.4902]
[1718355433350,2.3251,3522.4,3521.4,2.3459]
[1718355433551,0.696,3522.1,3521.4,2.3459]
[1718355434065,0.696,3522.1,3521.3,9.7155]
[1718355434408,0.696,3521.9,3521.3,7.44]
[1718355438148,2.2622,3522.0,3521.3,7.44]
[1718355438359,0.696,3521.9,3521.3,7.44]
[1718355438515,0.696,3521.9,3521.0,2.2755]
[1718355438846,0.696,3521.7,3521.0,2.2755]
[1718355439060,0.99182,3521.7,3521.0,2.2755]
[1718355439743,0.696,3521.7,3521.0,2.2755]
[1718355439946,2.2622,3522.0,3521.0,2.2755]
[1718355440161,2.2622,3522.0,3521.1,0.05679672]
[1718355440462,2.3709,3522.4,3521.2,2.374]
[1718355440612,0.696,3522.1,3521.2,2.374]
[1718355442151,0.49277067,3522.3,3521.2,2.374]
[1718355442387,0.696,3522.1,3521.2,2.374]
[1718355444299,0.49277067,3522.3,3521.2,2.374]
[1718355444813,0.696,3522.1,3521.2,2.374]
[1718355447496,1.05196707,3522.1,3521.2,2.374]
[1718355451276,0.696,3521.9,3521.2,2.374]
[1718355465723,0.696,3521.7,3521.2,2.374]
[1718355470321,0.696,3521.7,3521.2,2.37162212]
[1718355471413,2.2887,3522.0,3521.2,2.37162212]
[1718355471618,0.696,3521.8,3521.2,2.37162212]
[1718355477814,0.696,3521.6,3521.2,2.37162212]
[1718355478014,0.696,3521.6,3520.8,2.2791]
[1718355478327,0.696,3521.2,3520.8,2.2791]
[1718355480331,0.696,3521.4,3520.8,2.2791]
[1718355480509,1.78361107,3521.6,3520.8,2.2791]
[1718355480710,0.696,3521.5,3520.8,2.2791]
[1718355481438,0.696,3521.6,3520.8,2.2791]
[1718355481619,0.50405279,3521.5,3520.8,2.2791]
[1718355482005,2.47858898,3521.7,3520.8,2.2791]
[1718355482249,0.25823896,3521.8,3520.9,2.3495]
[1718355482420,0.95423896,3521.8,3520.9,2.3495]
[1718355482622,0.25823896,3521.8,3520.9,2.3495]
[1718355482822,0.696,3521.8,3520.9,2.3495]
[1718355483341,1.78258898,3521.9,3520.9,2.3495]
[1718355483550,0.696,3521.8,3520.9,2.3495]
[1718355484115,1.78258898,3521.9,3520.9,2.3495]
[1718355484356,0.696,3521.8,3520.9,2.3495]
[1718355485719,1.78258898,3521.9,3520.9,2.3495]
[1718355485931,0.7179489,3521.9,3521.1,2.4052]
[1718355486153,0.696,3521.8,3521.1,2.4052]
[1718355486456,1.78258898,3522.0,3521.1,2.4052]
[1718355486616,1.78258898,3522.2,3521.2,0.696]
[1718355486811,2.47858898,3522.2,3521.3,2.2512]
[1718355487017,0.4228189,3522.1,3521.3,2.2512]
[1718355487458,0.696,3522.0,3521.3,2.2512]
[1718355497588,1.1188189,3522.1,3521.3,2.2512]
[1718355497784,1.78258898,3522.3,3521.5,1.704]
[1718355497933,1.78258898,3522.3,3520.7,0.5917157]
[1718355497934,1.78258898,3522.9,3522.2,0.696]
[1718355498137,2.4066,3523.3,3522.2,0.696]
[1718355498138,1.78258898,3523.0,3522.2,0.696]
[1718355498390,0.1782589,3522.9,3522.2,0.696]
[1718355498561,0.1782589,3522.9,3522.1,2.426]
[1718355505291,0.696,3522.8,3522.1,2.426]
[1718355508658,3.0,3523.2,3522.1,2.426]
[1718355508877,0.696,3522.9,3522.1,2.426]
[1718355512413,3.24066,3523.2,3522.1,3.122]
[1718355512725,0.696,3523.0,3522.2,2.4489]
[1718355514433,0.697,3523.1,3522.2,2.4489]
[1718355516204,0.24066,3523.2,3521.7,1.704]
[1718355516205,0.697,3523.2,3522.4,2.4599]
[1718355517038,2.4927,3523.9,3522.6,2.489]
[1718355517474,0.697,3523.5,3522.6,2.489]
[1718355518335,3.0,3523.8,3522.6,2.489]
[1718355518684,0.697,3523.5,3522.6,2.489]
[1718355519257,2.4927,3523.9,3522.7,0.05676953]
[1718355519497,2.4927,3523.9,3523.0,2.421]
[1718355519498,0.697,3523.9,3523.0,2.421]
[1718355519637,3.0,3524.3,3523.1,3.118]
[1718355519844,2.65363151,3524.4,3523.2,2.421]
[1718355519845,0.697,3524.2,3523.2,2.421]
[1718355520065,0.33506315,3524.1,3523.2,2.421]
[1718355521353,0.33506315,3524.1,3523.3,0.05676103]
[1718355521595,1.03206315,3524.1,3523.3,0.05676103]
[1718355521791,1.03206315,3524.1,3523.2,2.421]
[1718355522489,0.697,3523.9,3523.2,2.421]
[1718355523267,0.696,3524.0,3523.2,2.421]
[1718355525487,0.696,3523.6,3523.2,2.421]
[1718355525719,3.0,3524.3,3521.9,6.33361989]
[1718355525720,0.696,3523.4,3522.6,2.2783]
[1718355526054,2.3818,3523.8,3522.6,2.2783]
[1718355526055,0.696,3523.6,3522.6,2.2783]
[1718355526879,0.696,3523.6,3522.7,0.05676892]
[1718355527080,0.696,3523.6,3522.8,2.4634]
[1718355531900,0.696,3523.4,3522.8,2.4634]
[1718355532244,0.696,3523.2,3522.2,2.4091]
[1718355532871,0.696,3523.2,3522.1,2.4]
[1718355532872,0.696,3523.2,3522.4,2.4091]
[1718355534313,0.696,3523.4,3522.4,2.4091]
[1718355534826,0.696,3523.4,3522.5,0.05677442]
[1718355535027,0.696,3523.5,3522.6,2.4325]
[1718355539400,0.696,3523.3,3522.6,2.4325]
[1718355541513,0.696,3523.5,3522.6,2.4325]
[1718355541687,1.00378,3523.5,3522.6,2.4325]
[1718355542505,0.696,3523.3,3522.6,2.4325]
[1718355542724,2.3818,3523.8,3522.6,2.4325]
[1718355542882,0.696,3523.4,3522.6,2.4325]
[1718355543520,0.696,3523.6,3522.6,2.4325]
[1718355544385,2.3818,3523.8,3522.8,2.2746]
[1718355544584,0.696,3523.6,3522.8,2.2746]
[1718355545995,2.3818,3523.8,3522.8,2.2746]
[1718355545996,0.696,3523.0,3522.8,2.2746]
[1718355546396,0.696,3523.2,3522.8,2.2746]
[1718355548722,0.696,3523.0,3522.4,2.3268]
[1718355549289,0.696,3523.1,3522.4,2.3268]
[1718355553809,0.696,3522.9,3522.4,2.3268]
[1718355562359,1.77738002,3523.4,3521.5,3.0]
[1718355562360,2.2925,3522.8,3522.0,2.4763]
[1718355562515,0.696,3522.5,3522.0,2.4763]
[1718355566549,0.696,3522.6,3522.0,2.4763]
[1718355568129,2.2925,3522.8,3522.0,2.4763]
[1718355568326,0.696,3522.7,3522.0,2.4763]
[1718355577496,0.696,3522.5,3522.0,2.4763]
[1718355579060,2.2925,3522.8,3522.0,2.4763]
[1718355579245,0.696,3522.6,3522.0,2.4763]
[1718355588156,0.696,3522.4,3522.0,2.4763]
[1718355588758,1.00549,3522.4,3522.0,2.4763]
[1718355588985,0.696,3522.4,3522.0,2.4763]
[1718355592407,0.696,3522.4,3521.6,2.4761]
[1718355602714,4.17799331,3522.7,3521.6,2.4761]
[1718355602924,0.696,3522.5,3521.6,2.4761]
[1718355603411,0.696,3522.5,3521.6,3.1721]
[1718355603717,0.696,3522.5,3521.7,2.4116]
[1718355604501,1.77909331,3522.7,3521.9,2.4644]
[1718355604702,0.696,3522.7,3521.9,2.4644]
[1718355605177,2.47509331,3522.7,3521.9,2.4644]
[1718355605381,0.696,3522.7,3521.9,2.4644]
[1718355605681,0.696,3522.8,3521.9,2.4644]
[1718355606191,2.47509331,3522.8,3521.9,2.4644]
[1718355606629,0.696,3522.6,3521.9,2.4644]
[1718355607122,0.696,3522.0,3521.0,12.18]
[1718355607295,0.696,3521.6,3520.9,2.4655]
[1718355607707,0.696,3521.4,3520.6,2.4567]
[1718355607948,1.77909331,3522.0,3520.5,0.4443134]
[1718355607949,0.696,3521.2,3520.5,0.4443134]
[1718355608124,0.696,3521.0,3520.5,0.4443134]
[1718355609909,1.77909331,3521.8,3520.6,0.05680227]
[1718355610227,0.696,3521.5,3520.5,1.1403134]
[1718355611270,4.14879331,3521.9,3520.7,2.4]
[1718355611271,0.696,3521.7,3520.7,2.4]
[1718355611475,0.696,3521.7,3520.8,0.05679629]
[1718355611654,0.696,3521.7,3520.7,3.83344514]
[1718355612308,0.696,3521.7,3520.8,0.05679629]
[1718355613140,4.77909331,3522.2,3520.8,0.05679629]
[1718355613566,0.696,3521.8,3520.8,0.05679629]
[1718355614277,3.0,3522.2,3521.0,2.3657]
[1718355614462,0.696,3522.0,3521.1,0.05679397]
[1718355615570,0.696,3521.8,3521.1,0.05679397]
[1718355617052,0.696,3521.6,3520.6,1.704]
[1718355617254,0.696,3521.6,3520.7,3.13744514]
[1718355617746,0.696,3521.4,3520.7,3.13744514]
[1718355618770,0.696,3521.4,3520.5,2.7325134]
[1718355618971,0.696,3521.4,3520.5,4.16595854]
[1718355620886,1.00388933,3522.1,3520.6,3.89024553]
[1718355621040,0.696,3521.7,3520.6,3.89024553]
[1718355621438,0.696,3521.7,3520.8,0.696]
[1718355621663,0.696,3521.7,3520.9,0.05679475]
[1718355623012,1.00388933,3522.1,3520.9,0.05679475]
[1718355623314,1.00388933,3522.1,3521.0,3.13744514]
[1718355623518,0.696,3522.0,3521.1,3.00889087]
[1718355624717,2.2598,3522.3,3521.1,3.00889087]
[1718355624884,0.696,3522.0,3521.1,3.00889087]
[1718355626421,0.696,3522.0,3521.1,2.31289087]
[1718355626614,0.696,3522.0,3521.1,3.00889087]
[1718355629122,0.696,3521.4,3520.7,2.3574]
[1718355632874,0.696,3521.2,3520.5,0.4443134]
[1718355633028,0.696,3521.2,3520.5,1.87775854]
[1718355634229,0.696,3521.0,3520.5,0.4443134]
[1718355634668,0.696,3521.2,3520.5,0.4443134]
[1718355635165,0.696,3521.0,3520.5,0.4443134]
[1718355636473,0.696,3521.1,3520.5,0.4443134]
[1718355638403,0.696,3520.9,3520.5,0.4443134]
[1718355638565,0.696,3520.7,3520.5,0.4443134]
[1718355638763,0.696,3520.7,3520.0,7.27]
[1718355639092,0.696,3520.5,3520.0,7.27]
[1718355639292,0.696,3520.5,3519.8,4.0822]
[1718355639491,0.696,3520.5,3519.8,5.51564514]
[1718355639657,2.2788,3521.1,3519.8,5.51564514]
[1718355639858,0.696,3520.6,3519.8,5.51564514]
[1718355643069,0.696,3520.6,3519.6,0.97377698]
[1718355643070,0.696,3520.6,3519.5,9.67]
[1718355643286,0.696,3520.4,3519.5,10.40744514]
[1718355643488,0.696,3520.4,3519.5,7.27]
[1718355643793,0.696,3520.0,3519.5,7.27]
[1718355643967,0.696,3520.1,3519.5,7.27]
[1718355644403,0.696,3519.9,3519.5,7.27]
[1718355644605,2.3904,3520.5,3519.5,7.27]
[1718355644819,0.696,3520.1,3519.5,7.27]
[1718355645319,0.23904,3520.4,3519.5,7.27]
[1718355645462,0.696,3520.1,3519.5,7.27]
[1718355645663,0.696,3520.1,3519.6,0.44458131]
[1718355646974,2.3904,3520.5,3519.6,0.44458131]
[1718355647193,0.696,3520.1,3519.6,0.44458131]
[1718355647401,2.3904,3520.5,3519.6,0.44458131]
[1718355647610,0.696,3520.2,3519.6,0.44458131]
[1718355649881,0.696,3520.2,3519.6,2.74468131]
[1718355656010,0.696,3520.3,3519.6,2.74468131]
[1718355663140,0.696,3520.1,3519.6,2.74468131]
[1718355663641,0.696,3520.1,3519.6,0.44458131]
[1718355667735,0.696,3519.9,3519.6,0.44458131]
[1718355671664,2.4951,3520.2,3519.6,0.44458131]
[1718355671889,0.696,3519.9,3519.6,0.44458131]
[1718355672969,0.696,3519.7,3519.6,0.44458131]
[1718355675085,3.0593,3519.7,3519.6,0.44458131]
[1718355675267,3.0593,3519.7,3519.1,7.27]
[1718355675268,3.36523,3519.7,3519.1,7.27]
[1718355675477,0.696,3519.5,3519.1,7.27]
[1718355676400,0.696,3519.3,3519.1,7.27]
[1718355678084,2.3633,3519.7,3519.1,7.27]
[1718355678285,0.696,3519.4,3519.1,7.27]
[1718355678685,0.696,3519.4,3518.7,2.2703]
[1718355679597,0.696,3519.2,3518.7,2.2703]
[1718355681420,0.696,3519.4,3518.7,2.2703]
[1718355682432,0.696,3520.2,3519.4,2.3059]
[1718355683013,0.696,3520.0,3519.1,2.2777]
[1718355684047,7.26927632,3520.5,3519.1,2.2777]
[1718355684219,0.696,3519.9,3519.1,2.2777]
[1718355684605,0.696,3519.9,3519.2,0.0568226]
[1718355684821,0.696,3519.9,3519.3,0.0568226]
[1718355685302,0.696,3520.1,3519.1,2.9737]
[1718355687510,0.696,3519.9,3519.1,2.2777]
[1718355689406,3.1161,3519.9,3519.1,2.2777]
[1718355690519,2.4201,3519.9,3519.1,2.2777]
[1718355695450,2.4201,3519.9,3519.1,0.2777]
[1718355697990,0.696,3520.0,3518.9,7.27]
[1718355697991,2.2703,3519.5,3518.9,7.27]
[1718355698189,0.696,3519.4,3518.9,7.27]
[1718355698352,0.696,3519.4,3518.4,7.966]
[1718355698663,0.696,3519.4,3518.5,2.4737]
[1718355701196,0.696,3519.4,3518.6,0.05683351]
[1718355701354,2.2703,3519.5,3518.6,0.75283351]
[1718355701702,0.696,3519.4,3518.5,0.696]
[1718355703299,0.696,3519.4,3518.3,0.01]
[1718355703477,0.696,3519.4,3518.4,0.696]
[1718355704268,0.696,3519.4,3518.5,0.05683352]
[1718355704991,2.3096,3519.3,3518.3,3.14944514]
[1718355705166,2.3096,3519.3,3518.4,0.696]
[1718355705361,2.3096,3519.3,3518.3,1.716]
[1718355705591,2.3096,3519.3,3518.3,0.01]
[1718355705592,0.696,3519.2,3518.3,0.01]
[1718355706299,0.696,3519.0,3518.3,0.01]
[1718355708326,2.43,3519.1,3518.3,0.01]
[1718355708507,3.126,3519.1,3518.3,0.01]
[1718355710428,3.468656,3519.1,3518.3,0.01]
[1718355711626,2.43,3519.1,3518.3,2.47954157]
[1718355713529,0.696,3518.6,3518.3,0.01]
[1718355714243,0.696,3519.0,3518.3,0.01]
[1718355716239,2.43,3519.1,3518.3,0.01]
[1718355716623,0.696,3518.9,3518.3,0.01]
[1718355717150,2.43,3519.1,3518.3,0.01]
[1718355717326,0.696,3518.9,3518.3,0.01]
[1718355720143,0.243,3519.0,3518.3,0.01]
[1718355720343,2.4113,3519.3,3518.4,2.2762]
[1718355720561,2.4113,3519.3,3518.5,0.05683674]
[1718355721480,0.696,3519.2,3518.4,2.2762]
[1718355721826,3.0,3519.5,3518.5,1.49028187]
[1718355722128,2.2695,3519.6,3518.5,1.49028187]
[1718355722454,0.696,3519.5,3518.5,1.49028187]
[1718355722959,3.0,3520.0,3518.6,2.402]
[1718355723179,0.696,3519.6,3518.7,3.75284514]
[1718355723390,2.4037,3519.9,3518.8,2.45882805]
[1718355723541,2.07636856,3520.5,3519.0,2.402]
[1718355723542,0.696,3520.1,3519.0,2.402]
[1718355723746,0.696,3520.1,3519.1,0.0568222]
[1718355723960,2.4037,3520.3,3519.2,3.0247]
[1718355724143,0.696,3520.2,3519.3,0.05682155]
[1718355724479,0.696,3520.3,3519.4,3.13944514]
[1718355725467,0.696,3520.1,3519.4,3.13944514]
[1718355725848,3.0,3520.7,3519.4,3.13944514]
[1718355726045,0.696,3520.2,3519.4,3.13944514]
[1718355727188,3.0,3520.7,3519.4,3.13944514]
[1718355727349,0.696,3520.2,3519.4,3.13944514]
[1718355729981,0.696,3520.0,3519.2,2.3287]
[1718355730177,3.0,3520.7,3519.2,2.3287]
[1718355730178,0.696,3519.8,3519.2,2.3287]
[1718355731618,0.696,3520.0,3519.2,2.3287]
[1718355731840,0.696,3520.0,3518.9,1.706]
[1718355731841,0.696,3519.4,3518.7,2.2996]
[1718355731978,0.696,3519.4,3518.3,2.3096]
[1718355732178,0.696,3519.4,3518.4,2.12944514]
[1718355732379,0.696,3519.4,3518.5,1.706]
[1718355732578,0.696,3519.4,3518.5,3.13944514]
[1718355733415,0.696,3519.2,3518.3,0.01]
[1718355734083,2.2735,3519.4,3518.3,0.01]
[1718355734287,0.696,3519.2,3518.3,0.706]
[1718355734478,4.57469842,3519.9,3518.4,3.19628365]
[1718355734714,0.696,3519.5,3518.6,2.4303]
[1718355738518,3.0,3519.8,3518.6,2.4303]
[1718355738722,0.696,3519.5,3518.6,2.4303]
[1718355739737,3.0,3519.8,3518.7,3.83544514]
[1718355740027,0.696,3519.8,3518.7,3.83544514]
[1718355740915,7.77781174,3520.2,3518.9,2.402]
[1718355740916,5.3088,3520.2,3518.9,2.402]
[1718355741101,2.3088,3520.2,3519.0,1.49026845]
[1718355741301,0.696,3520.0,3519.1,0.696]
[1718355741519,0.696,3520.0,3519.2,0.0568229]
[1718355743438,0.696,3520.0,3519.0,1.43344514]
[1718355744309,0.696,3520.0,3519.1,2.5522233]
[1718355744513,0.696,3520.0,3519.1,3.2482233]
[1718355745327,0.696,3520.0,3519.1,2.4954]
[1718355746115,2.3088,3520.2,3519.1,2.4954]
[1718355746440,0.696,3519.9,3519.1,2.4954]
[1718355753539,2.3088,3520.2,3519.1,2.4954]
[1718355753540,0.696,3519.7,3519.1,2.4954]
[1718355754053,0.696,3519.7,3518.7,2.4121]
[1718355754221,0.696,3519.7,3518.7,3.1081]
[1718355758420,0.696,3519.5,3518.7,2.4121]
[1718355761555,0.696,3519.7,3518.7,2.4121]
[1718355764163,4.77833573,3520.1,3518.7,2.4121]
[1718355764337,0.696,3519.7,3518.7,2.4121]
[1718355766631,2.3916,3519.6,3518.4,2.4304]
[1718355766830,2.3916,3519.6,3518.6,0.696]
[1718355767074,2.3916,3519.6,3518.7,0.0568332]
[1718355768981,2.3916,3519.6,3518.4,2.4304]
[1718355769259,2.3916,3519.6,3518.6,0.696]
[1718355770990,2.3988,3519.9,3518.8,2.4302]
[1718355771128,2.3988,3519.9,3518.9,0.05682523]
[1718355771330,2.3988,3519.9,3519.0,0.696]
[1718355771553,2.3988,3519.9,3519.1,0.0568261]
[1718355776674,2.3988,3519.9,3518.8,5.56964514]
[1718355776839,2.3988,3519.9,3519.0,0.696]
[1718355778781,2.3182,3519.5,3518.5,7.966]
[1718355778990,2.3182,3519.5,3518.7,0.696]
[1718355781059,2.4356,3519.9,3518.7,3.83544514]
[1718355781255,2.4356,3519.9,3518.9,0.696]
[1718355783371,2.4356,3519.9,3519.0,0.05682618]
[1718355783652,2.4356,3519.9,3519.1,0.696]
[1718355788402,4.06633573,3520.4,3519.5,0.696]
[1718355788558,2.984,3520.4,3519.6,0.05681808]
[1718355788980,2.984,3520.4,3519.4,0.696]
[1718355789185,0.77623357,3520.3,3519.4,0.696]
[1718355789396,2.984,3520.4,3519.4,0.696]
[1718355789674,2.984,3520.4,3519.5,0.05681813]
[1718355791079,2.288,3520.4,3519.5,0.05681813]
[1718355791294,2.984,3520.4,3519.5,0.05681813]
[1718355792021,2.984,3520.4,3519.4,0.696]
[1718355792301,0.77623357,3520.3,3519.4,0.696]
[1718355792466,0.696,3520.2,3519.3,4.1089]
[1718355792663,0.696,3520.2,3519.3,5.54234514]
[1718355793912,0.696,3520.0,3519.3,2.4029]
[1718355794205,2.4499,3519.9,3518.6,0.5917157]
[1718355794411,0.696,3519.5,3518.7,3.86234514]
[1718355794582,0.696,3519.7,3518.7,3.86234514]
[1718355794777,0.696,3519.7,3518.8,1.706]
[1718355794986,0.696,3519.7,3518.8,3.13944514]
[1718355795505,2.4499,3519.9,3518.8,3.83544514]
[1718355795682,3.1459,3519.9,3519.0,0.696]